[Event "Titled Tuesday Blitz May 24 Early 2022"]
[White "Visakh N R"]
[Black "Dubov, Daniil"]
[WhiteFideId "25012223"]
[BlackFideId "24126055"]
[WhiteElo "2448"]
[BlackElo "2791"]
[Result "0-1"]
[Round "05"]
[TimeControl "180+1"]
[Date "2022.05.24"]
[WhiteClock "0:01:22"]
[BlackClock "0:00:08"]

1. Nf3 {[%clk 0:02:51]}  Nf6 {[%clk 0:02:57]} 2. c4 {[%clk 0:02:49]}  g6 {[%clk 0:02:56]} 3. Nc3 {[%clk 0:02:49]}  Bg7 {[%clk 0:02:55]} 4. g3 {[%clk 0:02:49]}  b6 {[%clk 0:02:50]} 5. Bg2 {[%clk 0:02:49]}  Bb7 {[%clk 0:02:50]} 6. O-O {[%clk 0:02:49]}  O-O {[%clk 0:02:48]} 7. d3 {[%clk 0:02:48]}  c5 {[%clk 0:02:48]} 8. Rb1 {[%clk 0:02:41]}  Nc6 {[%clk 0:02:40]} 9. b3 {[%clk 0:02:39]}  d6 {[%clk 0:02:30]} 10. Bb2 {[%clk 0:02:38]}  Qd7 {[%clk 0:02:25]} 11. Qd2 {[%clk 0:02:36]}  e5 {[%clk 0:02:10]} 12. Ng5 {[%clk 0:02:28]}  h6 {[%clk 0:02:04]} 13. Nge4 {[%clk 0:02:28]}  Nh7 {[%clk 0:02:03]} 14. Nb5 {[%clk 0:02:26]}  Nd4 {[%clk 0:01:53]} 15. Nbxd6 {[%clk 0:02:17]}  Bc6 {[%clk 0:01:52]} 16. e3 {[%clk 0:02:16]}  Ne6 {[%clk 0:01:49]} 17. Nb5 {[%clk 0:02:13]}  Rad8 {[%clk 0:01:37]} 18. Rfd1 {[%clk 0:02:10]}  f5 {[%clk 0:01:12]} 19. Nec3 {[%clk 0:02:06]}  Bxg2 {[%clk 0:01:11]} 20. Kxg2 {[%clk 0:02:07]}  Nhg5 {[%clk 0:00:52]} 21. h4 {[%clk 0:01:58]}  f4 {[%clk 0:00:28]} 22. hxg5 {[%clk 0:01:49]}  f3+ {[%clk 0:00:27]} 23. Kg1 {[%clk 0:01:48]}  Nxg5 {[%clk 0:00:14]} 24. Qe1 {[%clk 0:01:48]}  Qh3 {[%clk 0:00:11]} 25. Qf1 {[%clk 0:01:48]}  Qh5 {[%clk 0:00:12]} 26. Qe1 {[%clk 0:01:33]}  Nh3+ {[%clk 0:00:10]} 27. Kf1 {[%clk 0:01:33]}  Rf5 {[%clk 0:00:10]} 28. Ne4 {[%clk 0:01:25]}  Nf4 {[%clk 0:00:08]} 29. Kg1 {[%clk 0:01:22]}  Qh3 {[%clk 0:00:08]} 0-1


[Site "https://www.chess.com"]

[Event "Titled Tuesday Blitz May 24 Early 2022"]
[White "Vittorino, Carlo Giovanni"]
[Black "Agasarov, Benik"]
[WhiteFideId "4401247"]
[BlackFideId "13314823"]
[WhiteElo "2233"]
[BlackElo "2605"]
[Result "0-1"]
[Round "05"]
[TimeControl "180+1"]
[Date "2022.05.25"]
[WhiteClock "0:00:01"]
[BlackClock "0:00:06"]

1. d4 {[%clk 0:03:00]}  Nf6 {[%clk 0:02:59]} 2. c4 {[%clk 0:02:59]}  e6 {[%clk 0:02:59]} 3. Nc3 {[%clk 0:02:59]}  Bb4 {[%clk 0:02:58]} 4. Nf3 {[%clk 0:02:59]}  d5 {[%clk 0:02:58]} 5. a3 {[%clk 0:02:49]}  Bxc3+ {[%clk 0:02:56]} 6. bxc3 {[%clk 0:02:49]}  c5 {[%clk 0:02:55]} 7. cxd5 {[%clk 0:02:49]}  exd5 {[%clk 0:02:54]} 8. e3 {[%clk 0:02:49]}  O-O {[%clk 0:02:54]} 9. Bd3 {[%clk 0:02:50]}  Nc6 {[%clk 0:02:52]} 10. O-O {[%clk 0:02:49]}  c4 {[%clk 0:02:52]} 11. Be2 {[%clk 0:02:49]}  Ne4 {[%clk 0:02:52]} 12. Bb2 {[%clk 0:02:47]}  Bf5 {[%clk 0:02:51]} 13. Nd2 {[%clk 0:02:47]}  Re8 {[%clk 0:02:45]} 14. Nxe4 {[%clk 0:02:42]}  Bxe4 {[%clk 0:02:40]} 15. f3 {[%clk 0:02:41]}  Bg6 {[%clk 0:02:40]} 16. Bc1 {[%clk 0:02:42]}  Ne7 {[%clk 0:02:36]} 17. e4 {[%clk 0:02:29]}  b5 {[%clk 0:02:22]} 18. e5 {[%clk 0:02:24]}  Qd7 {[%clk 0:02:22]} 19. g4 {[%clk 0:02:22]}  h5 {[%clk 0:02:21]} 20. h3 {[%clk 0:02:21]}  a5 {[%clk 0:02:13]} 21. Bd2 {[%clk 0:02:17]}  Ra6 {[%clk 0:02:07]} 22. f4 {[%clk 0:02:08]}  Be4 {[%clk 0:01:55]} 23. f5 {[%clk 0:02:08]}  hxg4 {[%clk 0:01:42]} 24. hxg4 {[%clk 0:02:04]}  Nxf5 {[%clk 0:01:38]} 25. gxf5 {[%clk 0:01:56]}  Bxf5 {[%clk 0:01:39]} 26. Bf3 {[%clk 0:01:46]}  Rg6+ {[%clk 0:01:37]} 27. Kf2 {[%clk 0:01:46]}  Qe7 {[%clk 0:01:22]} 28. Rh1 {[%clk 0:01:44]}  Qa7 {[%clk 0:01:00]} 29. Be3 {[%clk 0:01:36]}  Qd7 {[%clk 0:00:49]} 30. Qd2 {[%clk 0:01:27]}  Bg4 {[%clk 0:00:46]} 31. Rag1 {[%clk 0:01:17]}  Bxf3 {[%clk 0:00:45]} 32. Kxf3 {[%clk 0:01:16]}  Qf5+ {[%clk 0:00:43]} 33. Ke2 {[%clk 0:01:02]}  f6 {[%clk 0:00:35]} 34. Bf4 {[%clk 0:00:52]}  Qe4+ {[%clk 0:00:32]} 35. Kd1 {[%clk 0:00:43]}  Qb1+ {[%clk 0:00:30]} 36. Qc1 {[%clk 0:00:42]}  Qd3+ {[%clk 0:00:29]} 37. Qd2 {[%clk 0:00:40]}  Qf3+ {[%clk 0:00:29]} 38. Kc2 {[%clk 0:00:38]}  Rxg1 {[%clk 0:00:21]} 39. Rxg1 {[%clk 0:00:35]}  Qe4+ {[%clk 0:00:21]} 40. Kb2 {[%clk 0:00:35]}  b4 {[%clk 0:00:21]} 41. exf6 {[%clk 0:00:14]}  bxc3+ {[%clk 0:00:19]} 42. Kxc3 {[%clk 0:00:14]}  Qf3+ {[%clk 0:00:19]} 43. Kc2 {[%clk 0:00:14]}  Qb3+ {[%clk 0:00:17]} 44. Kc1 {[%clk 0:00:14]}  Qxa3+ {[%clk 0:00:18]} 45. Qb2 {[%clk 0:00:13]}  Qxb2+ {[%clk 0:00:09]} 46. Kxb2 {[%clk 0:00:13]}  Re2+ {[%clk 0:00:10]} 47. Kc3 {[%clk 0:00:11]}  g6 {[%clk 0:00:10]} 48. Rxg6+ {[%clk 0:00:11]}  Kf7 {[%clk 0:00:10]} 49. Rh6 {[%clk 0:00:10]}  a4 {[%clk 0:00:09]} 50. Be5 {[%clk 0:00:09]}  Rf2 {[%clk 0:00:09]} 51. Rh7+ {[%clk 0:00:09]}  Ke6 {[%clk 0:00:09]} 52. Re7+ {[%clk 0:00:09]}  Kf5 {[%clk 0:00:09]} 53. f7 {[%clk 0:00:09]}  Kg6 {[%clk 0:00:08]} 54. Rd7 {[%clk 0:00:07]}  a3 {[%clk 0:00:08]} 55. Rxd5 {[%clk 0:00:06]}  a2 {[%clk 0:00:09]} 56. Ra5 {[%clk 0:00:06]}  Kxf7 {[%clk 0:00:09]} 57. Kxc4 {[%clk 0:00:06]}  Ke6 {[%clk 0:00:10]} 58. Ra6+ {[%clk 0:00:05]}  Kf5 {[%clk 0:00:10]} 59. Kd5 {[%clk 0:00:04]}  Rb2 {[%clk 0:00:09]} 60. Rf6+ {[%clk 0:00:03]}  Kg5 {[%clk 0:00:09]} 61. Ra6 {[%clk 0:00:02]}  Kf5 {[%clk 0:00:08]} 62. Kc4 {[%clk 0:00:02]}  Ke4 {[%clk 0:00:07]} 63. Bh8 {[%clk 0:00:01]}  Rb8 {[%clk 0:00:06]} 0-1


[Site "https://www.chess.com"]

[Event "Titled Tuesday Blitz May 24 Early 2022"]
[White "Volkov, Maksim"]
[Black "Riehle, Marco"]
[WhiteFideId "54123070"]
[BlackFideId "12904392"]
[WhiteElo "2642"]
[BlackElo "2797"]
[Result "0-1"]
[Round "05"]
[TimeControl "180+1"]
[Date "2022.05.25"]
[WhiteClock "0:00:03"]
[BlackClock "0:01:14"]

1. d4 {[%clk 0:03:00]}  d5 {[%clk 0:02:43]} 2. c4 {[%clk 0:03:00]}  e6 {[%clk 0:02:31]} 3. Nf3 {[%clk 0:03:00]}  Nf6 {[%clk 0:02:31]} 4. g3 {[%clk 0:03:00]}  dxc4 {[%clk 0:02:30]} 5. Bg2 {[%clk 0:03:00]}  Bb4+ {[%clk 0:02:30]} 6. Bd2 {[%clk 0:03:00]}  a5 {[%clk 0:02:30]} 7. Qc2 {[%clk 0:02:59]}  Bxd2+ {[%clk 0:02:29]} 8. Qxd2 {[%clk 0:02:59]}  O-O {[%clk 0:02:28]} 9. Na3 {[%clk 0:02:46]}  b6 {[%clk 0:02:27]} 10. Nxc4 {[%clk 0:02:45]}  Bb7 {[%clk 0:02:28]} 11. O-O {[%clk 0:02:45]}  Nbd7 {[%clk 0:02:28]} 12. Rfd1 {[%clk 0:02:41]}  Rc8 {[%clk 0:02:27]} 13. Rac1 {[%clk 0:02:41]}  Qe7 {[%clk 0:02:26]} 14. Nfe5 {[%clk 0:02:19]}  Bxg2 {[%clk 0:02:27]} 15. Kxg2 {[%clk 0:02:19]}  Nxe5 {[%clk 0:02:20]} 16. Nxe5 {[%clk 0:01:59]}  Qd6 {[%clk 0:02:19]} 17. Rc6 {[%clk 0:01:51]}  Qd5+ {[%clk 0:02:19]} 18. f3 {[%clk 0:01:51]}  Qxa2 {[%clk 0:02:17]} 19. Qc2 {[%clk 0:01:45]}  Nd5 {[%clk 0:02:14]} 20. Qd2 {[%clk 0:01:22]}  Qb3 {[%clk 0:02:08]} 21. Rdc1 {[%clk 0:01:20]}  Rfd8 {[%clk 0:02:05]} 22. Kf2 {[%clk 0:01:18]}  h6 {[%clk 0:02:00]} 23. e4 {[%clk 0:01:15]}  Qb4 {[%clk 0:01:48]} 24. Qxb4 {[%clk 0:01:00]}  Nxb4 {[%clk 0:01:49]} 25. Rxc7 {[%clk 0:01:00]}  Rxc7 {[%clk 0:01:49]} 26. Rxc7 {[%clk 0:01:01]}  f6 {[%clk 0:01:49]} 27. Nc6 {[%clk 0:00:59]}  Nxc6 {[%clk 0:01:48]} 28. Rxc6 {[%clk 0:01:00]}  Rxd4 {[%clk 0:01:47]} 29. Rxb6 {[%clk 0:01:00]}  Rd2+ {[%clk 0:01:45]} 30. Kg1 {[%clk 0:00:52]}  e5 {[%clk 0:01:44]} 31. Rb5 {[%clk 0:00:50]}  Kf7 {[%clk 0:01:43]} 32. b3 {[%clk 0:00:42]}  Rb2 {[%clk 0:01:41]} 33. Rxa5 {[%clk 0:00:41]}  Rxb3 {[%clk 0:01:40]} 34. Kg2 {[%clk 0:00:41]}  Rb2+ {[%clk 0:01:40]} 35. Kh3 {[%clk 0:00:41]}  Rf2 {[%clk 0:01:39]} 36. Ra3 {[%clk 0:00:39]}  h5 {[%clk 0:01:38]} 37. Rb3 {[%clk 0:00:22]}  g5 {[%clk 0:01:33]} 38. Ra3 {[%clk 0:00:21]}  Ke6 {[%clk 0:01:28]} 39. Ra6+ {[%clk 0:00:20]}  Ke7 {[%clk 0:01:28]} 40. Ra7+ {[%clk 0:00:20]}  Kf8 {[%clk 0:01:28]} 41. Ra8+ {[%clk 0:00:21]}  Kf7 {[%clk 0:01:29]} 42. Ra7+ {[%clk 0:00:19]}  Kg6 {[%clk 0:01:29]} 43. Ra3 {[%clk 0:00:19]}  Rb2 {[%clk 0:01:29]} 44. Rc3 {[%clk 0:00:17]}  Ra2 {[%clk 0:01:29]} 45. Rb3 {[%clk 0:00:17]}  Rc2 {[%clk 0:01:26]} 46. Ra3 {[%clk 0:00:17]}  Kf7 {[%clk 0:01:27]} 47. Ra7+ {[%clk 0:00:16]}  Ke6 {[%clk 0:01:27]} 48. Ra6+ {[%clk 0:00:17]}  Ke7 {[%clk 0:01:27]} 49. Ra7+ {[%clk 0:00:17]}  Kd6 {[%clk 0:01:28]} 50. Ra6+ {[%clk 0:00:17]}  Rc6 {[%clk 0:01:28]} 51. Ra3 {[%clk 0:00:07]}  Kc5 {[%clk 0:01:26]} 52. Rd3 {[%clk 0:00:05]}  Kc4 {[%clk 0:01:25]} 53. Rd8 {[%clk 0:00:05]}  Rb6 {[%clk 0:01:23]} 54. f4 {[%clk 0:00:05]}  gxf4 {[%clk 0:01:18]} 55. gxf4 {[%clk 0:00:05]}  exf4 {[%clk 0:01:18]} 56. Kh4 {[%clk 0:00:05]}  Re6 {[%clk 0:01:14]} 57. Kxh5 {[%clk 0:00:05]}  f3 {[%clk 0:01:14]} 58. Kg4 {[%clk 0:00:03]}  f2 {[%clk 0:01:14]} 59. Rd1 {[%clk 0:00:03]}  Rxe4+ {[%clk 0:01:14]} 60. Kf3 {[%clk 0:00:03]}  Re1 {[%clk 0:01:14]} 0-1


[Site "https://www.chess.com"]

[Event "Titled Tuesday Blitz May 24 Early 2022"]
[White "Wadsworth, Matthew J"]
[Black "Kovalev, Vladislav"]
[WhiteFideId "415804"]
[BlackFideId "13504398"]
[WhiteElo "2294"]
[BlackElo "2530"]
[Result "0-1"]
[Round "05"]
[TimeControl "180+1"]
[Date "2022.05.24"]
[WhiteClock "0:00:10"]
[BlackClock "0:00:04"]

1. Nf3 {[%clk 0:03:00]}  Nf6 {[%clk 0:03:00]} 2. g3 {[%clk 0:03:01]}  g6 {[%clk 0:02:58]} 3. Bg2 {[%clk 0:03:01]}  Bg7 {[%clk 0:02:59]} 4. O-O {[%clk 0:03:01]}  O-O {[%clk 0:03:00]} 5. c4 {[%clk 0:03:01]}  d6 {[%clk 0:03:00]} 6. Nc3 {[%clk 0:03:01]}  e5 {[%clk 0:03:01]} 7. d3 {[%clk 0:03:00]}  Nc6 {[%clk 0:02:59]} 8. Rb1 {[%clk 0:03:00]}  a5 {[%clk 0:02:59]} 9. a3 {[%clk 0:03:00]}  h6 {[%clk 0:02:59]} 10. b4 {[%clk 0:03:00]}  axb4 {[%clk 0:03:00]} 11. axb4 {[%clk 0:03:01]}  Be6 {[%clk 0:03:01]} 12. b5 {[%clk 0:03:01]}  Ne7 {[%clk 0:03:01]} 13. Bb2 {[%clk 0:03:01]}  Qc8 {[%clk 0:03:02]} 14. Qb3 {[%clk 0:03:01]}  Bh3 {[%clk 0:03:02]} 15. Ra1 {[%clk 0:03:02]}  Bxg2 {[%clk 0:03:01]} 16. Kxg2 {[%clk 0:03:02]}  Qe6 {[%clk 0:02:57]} 17. Rxa8 {[%clk 0:03:00]}  Rxa8 {[%clk 0:02:58]} 18. Ra1 {[%clk 0:02:59]}  Rxa1 {[%clk 0:02:59]} 19. Bxa1 {[%clk 0:02:59]}  e4 {[%clk 0:02:47]} 20. Nd2 {[%clk 0:02:33]}  e3 {[%clk 0:02:30]} 21. fxe3 {[%clk 0:02:32]}  Qxe3 {[%clk 0:02:25]} 22. Nf1 {[%clk 0:02:29]}  Qe6 {[%clk 0:02:23]} 23. Qa2 {[%clk 0:02:20]}  Ng4 {[%clk 0:02:18]} 24. Ne4 {[%clk 0:01:58]}  Bxa1 {[%clk 0:02:11]} 25. Qxa1 {[%clk 0:01:59]}  f5 {[%clk 0:02:11]} 26. Nc3 {[%clk 0:01:55]}  Kf7 {[%clk 0:02:00]} 27. Qc1 {[%clk 0:01:51]}  g5 {[%clk 0:01:56]} 28. h3 {[%clk 0:01:49]}  Nf6 {[%clk 0:01:55]} 29. Qe3 {[%clk 0:01:45]}  Ng6 {[%clk 0:01:41]} 30. Qa7 {[%clk 0:01:31]}  Qe5 {[%clk 0:01:38]} 31. d4 {[%clk 0:01:22]}  Qe6 {[%clk 0:01:38]} 32. d5 {[%clk 0:00:55]}  Qe5 {[%clk 0:01:33]} 33. Qxb7 {[%clk 0:00:52]}  Qxc3 {[%clk 0:01:32]} 34. Qxc7+ {[%clk 0:00:53]}  Ne7 {[%clk 0:00:58]} 35. b6 {[%clk 0:00:44]}  Qb2 {[%clk 0:00:44]} 36. b7 {[%clk 0:00:43]}  Ne4 {[%clk 0:00:30]} 37. Kf3 {[%clk 0:00:36]}  Qc1 {[%clk 0:00:23]} 38. Kg2 {[%clk 0:00:31]}  Qb2 {[%clk 0:00:11]} 39. Kf3 {[%clk 0:00:31]}  Qd4 {[%clk 0:00:04]} 40. Ne3 {[%clk 0:00:27]}  Nd2+ {[%clk 0:00:04]} 41. Kf2 {[%clk 0:00:25]}  Ne4+ {[%clk 0:00:05]} 42. Kf3 {[%clk 0:00:25]}  Nd2+ {[%clk 0:00:03]} 43. Kf2 {[%clk 0:00:25]}  f4 {[%clk 0:00:03]} 44. gxf4 {[%clk 0:00:15]}  Qxf4+ {[%clk 0:00:04]} 45. Kg2 {[%clk 0:00:11]}  Qxe3 {[%clk 0:00:05]} 46. b8=Q {[%clk 0:00:11]}  Qxe2+ {[%clk 0:00:05]} 47. Kg3 {[%clk 0:00:10]}  Ne4# {[%clk 0:00:04]} 0-1


[Site "https://www.chess.com"]

[Event "Titled Tuesday Blitz May 24 Early 2022"]
[White "Xiong, Jeffery"]
[Black "Gaehwiler, Gabriel"]
[WhiteFideId "2047640"]
[BlackFideId "1314530"]
[WhiteElo "2727"]
[BlackElo "2383"]
[Result "1-0"]
[Round "05"]
[TimeControl "180+1"]
[Date "2022.05.24"]
[WhiteClock "0:00:05"]
[BlackClock "0:00:03"]

1. e4 {[%clk 0:03:00]}  c5 {[%clk 0:02:59]} 2. Nf3 {[%clk 0:03:01]}  d6 {[%clk 0:02:59]} 3. Nc3 {[%clk 0:03:01]}  Nf6 {[%clk 0:03:00]} 4. d4 {[%clk 0:03:02]}  cxd4 {[%clk 0:03:01]} 5. Qxd4 {[%clk 0:03:03]}  Nc6 {[%clk 0:02:57]} 6. Qd3 {[%clk 0:03:03]}  g6 {[%clk 0:02:56]} 7. Nd5 {[%clk 0:03:04]}  Bg7 {[%clk 0:02:56]} 8. c3 {[%clk 0:03:04]}  O-O {[%clk 0:02:56]} 9. Bg5 {[%clk 0:03:05]}  Be6 {[%clk 0:02:49]} 10. Be2 {[%clk 0:03:02]}  Ne5 {[%clk 0:02:39]} 11. Nxe5 {[%clk 0:02:38]}  dxe5 {[%clk 0:02:40]} 12. Rd1 {[%clk 0:02:37]}  Bxd5 {[%clk 0:02:10]} 13. exd5 {[%clk 0:02:38]}  Ne8 {[%clk 0:02:09]} 14. c4 {[%clk 0:02:31]}  Rc8 {[%clk 0:02:02]} 15. b4 {[%clk 0:02:30]}  b6 {[%clk 0:02:00]} 16. O-O {[%clk 0:02:19]}  f5 {[%clk 0:02:00]} 17. Rc1 {[%clk 0:02:15]}  e4 {[%clk 0:01:57]} 18. Qb3 {[%clk 0:02:14]}  Bf6 {[%clk 0:01:55]} 19. Bd2 {[%clk 0:01:57]}  Be5 {[%clk 0:01:46]} 20. c5 {[%clk 0:01:56]}  Nf6 {[%clk 0:01:46]} 21. Ba6 {[%clk 0:01:54]}  Rb8 {[%clk 0:01:33]} 22. d6+ {[%clk 0:01:34]}  Kg7 {[%clk 0:01:30]} 23. Bc3 {[%clk 0:01:30]}  exd6 {[%clk 0:01:29]} 24. c6 {[%clk 0:01:14]}  Qc7 {[%clk 0:01:22]} 25. Rfd1 {[%clk 0:01:14]}  Rbd8 {[%clk 0:01:03]} 26. a4 {[%clk 0:01:12]}  Rfe8 {[%clk 0:00:59]} 27. h3 {[%clk 0:01:11]}  e3 {[%clk 0:00:55]} 28. fxe3 {[%clk 0:01:11]}  Ne4 {[%clk 0:00:55]} 29. Bxe5+ {[%clk 0:01:07]}  Rxe5 {[%clk 0:00:55]} 30. Be2 {[%clk 0:01:01]}  Rde8 {[%clk 0:00:50]} 31. Qd3 {[%clk 0:00:46]}  a5 {[%clk 0:00:48]} 32. b5 {[%clk 0:00:44]}  R8e6 {[%clk 0:00:44]} 33. Qd4 {[%clk 0:00:43]}  Nc5 {[%clk 0:00:43]} 34. Bc4 {[%clk 0:00:41]}  Rf6 {[%clk 0:00:40]} 35. Ba2 {[%clk 0:00:35]}  h5 {[%clk 0:00:36]} 36. Bd5 {[%clk 0:00:25]}  Qe7 {[%clk 0:00:36]} 37. Rc3 {[%clk 0:00:23]}  Rf8 {[%clk 0:00:34]} 38. Bf3 {[%clk 0:00:22]}  Rf6 {[%clk 0:00:33]} 39. Kh1 {[%clk 0:00:19]}  Kh7 {[%clk 0:00:32]} 40. Qf4 {[%clk 0:00:19]}  Ne6 {[%clk 0:00:30]} 41. Qh4 {[%clk 0:00:18]}  Nc5 {[%clk 0:00:30]} 42. Rd5 {[%clk 0:00:18]}  Rxd5 {[%clk 0:00:24]} 43. Bxd5 {[%clk 0:00:19]}  Re6 {[%clk 0:00:22]} 44. Qxe7+ {[%clk 0:00:06]}  Rxe7 {[%clk 0:00:22]} 45. Kg1 {[%clk 0:00:06]}  Kg7 {[%clk 0:00:18]} 46. Kf2 {[%clk 0:00:04]}  Kf6 {[%clk 0:00:15]} 47. Bf3 {[%clk 0:00:04]}  Rc7 {[%clk 0:00:15]} 48. Rc4 {[%clk 0:00:03]}  Ke5 {[%clk 0:00:14]} 49. Rd4 {[%clk 0:00:03]}  Ke6 {[%clk 0:00:12]} 50. Kg3 {[%clk 0:00:03]}  Ke5 {[%clk 0:00:12]} 51. Kh4 {[%clk 0:00:03]}  Ne6 {[%clk 0:00:10]} 52. Rd5+ {[%clk 0:00:04]}  Kf6 {[%clk 0:00:09]} 53. Rxd6 {[%clk 0:00:04]}  Ke7 {[%clk 0:00:10]} 54. Rd5 {[%clk 0:00:05]}  Kf6 {[%clk 0:00:10]} 55. Rd6 {[%clk 0:00:03]}  Ke7 {[%clk 0:00:10]} 56. Rd2 {[%clk 0:00:04]}  Kf6 {[%clk 0:00:10]} 57. Bd5 {[%clk 0:00:05]}  Nc5 {[%clk 0:00:10]} 58. Bc4 {[%clk 0:00:05]}  Re7 {[%clk 0:00:10]} 59. Rd6+ {[%clk 0:00:05]}  Ke5 {[%clk 0:00:11]} 60. Rxg6 {[%clk 0:00:05]}  Ke4 {[%clk 0:00:11]} 61. Kxh5 {[%clk 0:00:05]}  Kxe3 {[%clk 0:00:11]} 62. Kh6 {[%clk 0:00:06]}  Kd4 {[%clk 0:00:11]} 63. Rg7 {[%clk 0:00:06]}  Re8 {[%clk 0:00:04]} 64. Bf7 {[%clk 0:00:06]}  Rc8 {[%clk 0:00:04]} 65. Bg6 {[%clk 0:00:06]}  Ke5 {[%clk 0:00:02]} 66. Rf7 {[%clk 0:00:06]}  Rh8+ {[%clk 0:00:01]} 67. Kg7 {[%clk 0:00:06]}  Ne6+ {[%clk 0:00:02]} 68. Kxh8 {[%clk 0:00:06]}  f4 {[%clk 0:00:03]} 69. Rf5+ {[%clk 0:00:05]} 1-0


[Site "https://www.chess.com"]

[Event "Titled Tuesday Blitz May 24 Early 2022"]
[White "Yeletsky, Ivan"]
[Black "Kruckenhauser, Arthur"]
[WhiteFideId "24180327"]
[BlackFideId "1642812"]
[WhiteElo "2319"]
[BlackElo "2243"]
[Result "1-0"]
[Round "05"]
[TimeControl "180+1"]
[Date "2022.05.24"]
[WhiteClock "0:01:21"]
[BlackClock "0:00:22"]

1. e4 {[%clk 0:03:00]}  c5 {[%clk 0:02:53]} 2. a4 {[%clk 0:02:58]}  Nc6 {[%clk 0:02:49]} 3. Bb5 {[%clk 0:02:57]}  g6 {[%clk 0:02:48]} 4. h4 {[%clk 0:02:54]}  h5 {[%clk 0:02:47]} 5. Ra3 {[%clk 0:02:53]}  Bg7 {[%clk 0:02:47]} 6. Rg3 {[%clk 0:02:49]}  Nd4 {[%clk 0:02:46]} 7. Bc4 {[%clk 0:02:46]}  e6 {[%clk 0:02:41]} 8. Nc3 {[%clk 0:02:45]}  Ne7 {[%clk 0:02:40]} 9. d3 {[%clk 0:02:42]}  d5 {[%clk 0:02:39]} 10. Ba2 {[%clk 0:02:43]}  b6 {[%clk 0:02:36]} 11. Nf3 {[%clk 0:02:38]}  dxe4 {[%clk 0:02:33]} 12. dxe4 {[%clk 0:02:35]}  Ba6 {[%clk 0:02:33]} 13. Nxd4 {[%clk 0:02:29]}  Bxd4 {[%clk 0:02:30]} 14. Nb5 {[%clk 0:02:27]}  Bxb5 {[%clk 0:02:22]} 15. axb5 {[%clk 0:02:27]}  Qc7 {[%clk 0:02:16]} 16. c3 {[%clk 0:02:12]}  Be5 {[%clk 0:02:12]} 17. Rd3 {[%clk 0:02:09]}  Bf4 {[%clk 0:02:01]} 18. O-O {[%clk 0:01:44]}  Bxc1 {[%clk 0:01:59]} 19. Qxc1 {[%clk 0:01:44]}  O-O {[%clk 0:02:00]} 20. Rfd1 {[%clk 0:01:27]}  Rad8 {[%clk 0:01:57]} 21. Qd2 {[%clk 0:01:27]}  Rxd3 {[%clk 0:01:32]} 22. Qxd3 {[%clk 0:01:27]}  Qf4 {[%clk 0:01:29]} 23. g3 {[%clk 0:01:26]}  Qg4 {[%clk 0:01:25]} 24. Kg2 {[%clk 0:01:26]}  e5 {[%clk 0:00:36]} 25. f3 {[%clk 0:01:25]}  Qc8 {[%clk 0:00:35]} 26. Qd6 {[%clk 0:01:25]}  Qe8 {[%clk 0:00:25]} 27. Bc4 {[%clk 0:01:22]}  Nc8 {[%clk 0:00:22]} 28. Qxg6+ {[%clk 0:01:21]} 1-0


[Site "https://www.chess.com"]

[Event "Titled Tuesday Blitz May 24 Early 2022"]
[White "Zakhartsov, Vladimir"]
[Black "Artemenko, Oleg"]
[WhiteFideId "4145097"]
[BlackFideId "14201798"]
[WhiteElo "2836"]
[BlackElo "2669"]
[Result "1/2-1/2"]
[Round "05"]
[TimeControl "180+1"]
[Date "2022.05.25"]
[WhiteClock "0:00:07"]
[BlackClock "0:00:10"]

1. c4 {[%clk 0:03:00]}  e5 {[%clk 0:03:00]} 2. Nc3 {[%clk 0:02:59]}  Nc6 {[%clk 0:02:59]} 3. g3 {[%clk 0:02:59]}  Bc5 {[%clk 0:02:59]} 4. Bg2 {[%clk 0:02:59]}  d6 {[%clk 0:03:00]} 5. e3 {[%clk 0:02:59]}  a6 {[%clk 0:02:59]} 6. Nge2 {[%clk 0:02:59]}  Nf6 {[%clk 0:02:59]} 7. O-O {[%clk 0:02:59]}  h5 {[%clk 0:03:00]} 8. d4 {[%clk 0:02:58]}  Ba7 {[%clk 0:03:00]} 9. h3 {[%clk 0:02:57]}  O-O {[%clk 0:02:57]} 10. b3 {[%clk 0:02:56]}  Re8 {[%clk 0:02:56]} 11. Bb2 {[%clk 0:02:56]}  Bf5 {[%clk 0:02:56]} 12. Nd5 {[%clk 0:02:55]}  exd4 {[%clk 0:02:53]} 13. Nxd4 {[%clk 0:02:49]}  Nxd4 {[%clk 0:02:49]} 14. Bxd4 {[%clk 0:02:49]}  Bxd4 {[%clk 0:02:46]} 15. Qxd4 {[%clk 0:02:50]}  Nxd5 {[%clk 0:02:46]} 16. cxd5 {[%clk 0:02:48]}  Qg5 {[%clk 0:02:35]} 17. Rac1 {[%clk 0:02:47]}  Re7 {[%clk 0:02:33]} 18. Rc3 {[%clk 0:02:41]}  Qg6 {[%clk 0:02:19]} 19. Rfc1 {[%clk 0:02:40]}  Rc8 {[%clk 0:02:20]} 20. Qa7 {[%clk 0:02:36]}  b6 {[%clk 0:02:09]} 21. Rxc7 {[%clk 0:02:28]}  Rcxc7 {[%clk 0:02:09]} 22. Rxc7 {[%clk 0:02:29]}  Rxc7 {[%clk 0:02:10]} 23. Qxc7 {[%clk 0:02:29]}  Qf6 {[%clk 0:02:10]} 24. e4 {[%clk 0:02:23]}  Bg6 {[%clk 0:02:07]} 25. Qxb6 {[%clk 0:02:07]}  Qa1+ {[%clk 0:02:06]} 26. Kh2 {[%clk 0:02:07]}  Qxa2 {[%clk 0:02:07]} 27. b4 {[%clk 0:02:04]}  Qc2 {[%clk 0:02:05]} 28. Qd4 {[%clk 0:01:57]}  h4 {[%clk 0:02:00]} 29. gxh4 {[%clk 0:01:55]}  f6 {[%clk 0:02:01]} 30. Kg3 {[%clk 0:01:52]}  Be8 {[%clk 0:02:00]} 31. Qb6 {[%clk 0:01:46]}  Qc3+ {[%clk 0:01:57]} 32. f3 {[%clk 0:01:45]}  Qe5+ {[%clk 0:01:55]} 33. Kf2 {[%clk 0:01:45]}  Qb2+ {[%clk 0:01:55]} 34. Kg1 {[%clk 0:01:45]}  Qa1+ {[%clk 0:01:55]} 35. Kh2 {[%clk 0:01:43]}  Qe5+ {[%clk 0:01:54]} 36. Kh1 {[%clk 0:01:43]}  Qa1+ {[%clk 0:01:54]} 37. Qg1 {[%clk 0:01:43]}  Qb2 {[%clk 0:01:54]} 38. Qe1 {[%clk 0:01:43]}  Bb5 {[%clk 0:01:52]} 39. h5 {[%clk 0:01:42]}  Kh7 {[%clk 0:01:52]} 40. Qg3 {[%clk 0:01:40]}  Be8 {[%clk 0:01:40]} 41. Qxd6 {[%clk 0:01:39]}  Bxh5 {[%clk 0:01:40]} 42. Qxa6 {[%clk 0:01:34]}  Qb1+ {[%clk 0:01:33]} 43. Qf1 {[%clk 0:01:32]}  Qxb4 {[%clk 0:01:33]} 44. Qd1 {[%clk 0:01:30]}  Qxe4 {[%clk 0:01:21]} 45. d6 {[%clk 0:01:02]}  Qe8 {[%clk 0:01:20]} 46. d7 {[%clk 0:00:59]}  Qd8 {[%clk 0:01:20]} 47. Qd6 {[%clk 0:00:57]}  Bg6 {[%clk 0:01:03]} 48. Qd5 {[%clk 0:00:47]}  f5 {[%clk 0:00:33]} 49. Bf1 {[%clk 0:00:48]}  f4 {[%clk 0:00:27]} 50. Bc4 {[%clk 0:00:43]}  Kh6 {[%clk 0:00:23]} 51. Qd6 {[%clk 0:00:31]}  Qh4 {[%clk 0:00:18]} 52. d8=Q {[%clk 0:00:15]}  Qxh3+ {[%clk 0:00:18]} 53. Kg1 {[%clk 0:00:16]}  Qg3+ {[%clk 0:00:19]} 54. Kf1 {[%clk 0:00:16]}  Qxf3+ {[%clk 0:00:20]} 55. Ke1 {[%clk 0:00:16]}  Qg3+ {[%clk 0:00:16]} 56. Kd2 {[%clk 0:00:16]}  Qe3+ {[%clk 0:00:16]} 57. Kd1 {[%clk 0:00:15]}  Qg1+ {[%clk 0:00:14]} 58. Ke2 {[%clk 0:00:09]}  Qe3+ {[%clk 0:00:14]} 59. Kf1 {[%clk 0:00:09]}  Qf3+ {[%clk 0:00:13]} 60. Ke1 {[%clk 0:00:10]}  Qe3+ {[%clk 0:00:14]} 61. Be2 {[%clk 0:00:10]}  Qg1+ {[%clk 0:00:11]} 62. Bf1 {[%clk 0:00:06]}  Qe3+ {[%clk 0:00:11]} 63. Kd1 {[%clk 0:00:07]}  Qb3+ {[%clk 0:00:11]} 64. Ke2 {[%clk 0:00:06]}  Qe3+ {[%clk 0:00:11]} 65. Kd1 {[%clk 0:00:06]}  Qb3+ {[%clk 0:00:11]} 66. Ke1 {[%clk 0:00:07]}  Qg3+ {[%clk 0:00:10]} 67. Ke2 {[%clk 0:00:06]}  Qe3+ {[%clk 0:00:10]} 68. Kd1 {[%clk 0:00:07]} 1/2-1/2


[Site "https://www.chess.com"]